[Event "*** SCC Grand Prix: Titled Tuesday Blitz"]
[Site "Chess.com"]
[Date "2020.08.04"]
[Round "4"]
[White "Sam_ChessMood"]
[Black "Fh2411"]
[Result "1-0"]
[WhiteElo "2804"]
[BlackElo "2546"]
[TimeControl "180+1"]
[EndTime "14:19:31 PDT"]
[Termination "Sam_ChessMood won by resignation"]

1. d4 {[%clk 0:03:00.9]} 1... d5 {[%clk 0:02:59.6]} 2. c4 {[%clk 0:03:00.4]}
2... c6 {[%clk 0:03:00.5]} 3. cxd5 {[%clk 0:02:59.3]} 3... cxd5 {[%clk
0:03:01.4]} 4. Bg5 {[%clk 0:02:59.4]} 4... Nc6 {[%clk 0:02:59]} 5. Nc3 {[%clk
0:02:50]} 5... Nf6 {[%clk 0:02:57.5]} 6. e3 {[%clk 0:02:47.9]} 6... e6 {[%clk
0:02:54]} 7. Bd3 {[%clk 0:02:46.8]} 7... Be7 {[%clk 0:02:54.2]} 8. f4 {[%clk
0:02:44.3]} 8... h6 {[%clk 0:02:50.5]} 9. Bxf6 {[%clk 0:02:42.7]} 9... Bxf6
{[%clk 0:02:50.5]} 10. Nf3 {[%clk 0:02:43]} 10... Bd7 {[%clk 0:02:42.6]} 11. O-O
{[%clk 0:02:38.2]} 11... Ne7 {[%clk 0:02:41.5]} 12. Ne5 {[%clk 0:02:36.1]} 12...
a6 {[%clk 0:02:32]} 13. Rc1 {[%clk 0:02:35.4]} 13... O-O {[%clk 0:02:31.9]} 14.
Bb1 {[%clk 0:02:27.5]} 14... Be8 {[%clk 0:02:24.8]} 15. g4 {[%clk 0:02:15.2]}
15... g6 {[%clk 0:02:24.1]} 16. Rc2 {[%clk 0:02:13]} 16... Rc8 {[%clk 0:02:14]}
17. Rg2 {[%clk 0:02:12]} 17... Bg7 {[%clk 0:02:12.8]} 18. h4 {[%clk 0:02:09.7]}
18... f6 {[%clk 0:02:10.4]} 19. Nf3 {[%clk 0:02:09.7]} 19... Rc7 {[%clk
0:01:55.1]} 20. h5 {[%clk 0:02:09.2]} 20... g5 {[%clk 0:01:50]} 21. Qd3 {[%clk
0:02:08.7]} 21... gxf4 {[%clk 0:01:35.2]} 22. Qh7+ {[%clk 0:02:01.5]} 22... Kf7
{[%clk 0:01:35.3]} 23. Bg6+ {[%clk 0:01:59.3]} 23... Nxg6 {[%clk 0:01:35.3]} 24.
hxg6+ {[%clk 0:01:59.7]} 24... Ke7 {[%clk 0:01:34.9]} 25. Qxg7+ {[%clk
0:02:00.1]} 1-0

[Event "*** SCC Grand Prix: Titled Tuesday Blitz"]
[Site "Chess.com"]
[Date "2020.08.04"]
[Round "4"]
[White "DanielRensch"]
[Black "KuzubovYuriy"]
[Result "0-1"]
[WhiteElo "2559"]
[BlackElo "2832"]
[TimeControl "180+1"]
[EndTime "14:19:54 PDT"]
[Termination "KuzubovYuriy won by resignation"]

1. e4 {[%clk 0:03:00.9]} 1... c5 {[%clk 0:02:59.9]} 2. Nf3 {[%clk 0:03:00.4]}
2... Nc6 {[%clk 0:02:59.3]} 3. d4 {[%clk 0:03:00.2]} 3... cxd4 {[%clk
0:02:59.6]} 4. Nxd4 {[%clk 0:03:01.1]} 4... Nf6 {[%clk 0:02:59.8]} 5. Nc3 {[%clk
0:03:01.1]} 5... e5 {[%clk 0:03:00.4]} 6. Ndb5 {[%clk 0:03:01.2]} 6... d6 {[%clk
0:03:01]} 7. Bg5 {[%clk 0:03:00.9]} 7... a6 {[%clk 0:03:01.4]} 8. Na3 {[%clk
0:03:01.5]} 8... b5 {[%clk 0:03:01.1]} 9. Bxf6 {[%clk 0:03:02.1]} 9... gxf6
{[%clk 0:03:01.3]} 10. Nd5 {[%clk 0:03:02.3]} 10... f5 {[%clk 0:03:01.6]} 11.
Bd3 {[%clk 0:02:59.6]} 11... Be6 {[%clk 0:03:01.4]} 12. O-O {[%clk 0:02:56.7]}
12... Bxd5 {[%clk 0:02:59.4]} 13. exd5 {[%clk 0:02:56.4]} 13... Ne7 {[%clk
0:03:00.1]} 14. Nxb5 {[%clk 0:02:56.1]} 14... Bg7 {[%clk 0:02:59.2]} 15. Nc3
{[%clk 0:02:54.7]} 15... e4 {[%clk 0:02:58.8]} 16. Bc4 {[%clk 0:02:54.3]} 16...
Qc7 {[%clk 0:02:46.2]} 17. Bb3 {[%clk 0:02:53.7]} 17... Bxc3 {[%clk 0:02:38.4]}
18. bxc3 {[%clk 0:02:53.4]} 18... O-O {[%clk 0:02:38.1]} 19. Qh5 {[%clk
0:02:53.1]} 19... f4 {[%clk 0:02:28.8]} 20. h4 {[%clk 0:02:48.3]} 20... Ng6
{[%clk 0:02:18.7]} 21. Rae1 {[%clk 0:02:37.7]} 21... Rae8 {[%clk 0:02:15.5]} 22.
Ba4 {[%clk 0:02:37.6]} 22... Re5 {[%clk 0:02:13.4]} 23. Qg4 {[%clk 0:02:37.8]}
23... h5 {[%clk 0:02:10.1]} 24. Qh3 {[%clk 0:02:31.7]} 24... Qe7 {[%clk
0:02:06.6]} 25. g3 {[%clk 0:02:30.3]} 25... Kh7 {[%clk 0:02:04.6]} 26. c4 {[%clk
0:02:25]} 26... Rg8 {[%clk 0:01:59.9]} 27. Kh2 {[%clk 0:02:15.6]} 27... e3
{[%clk 0:01:59.2]} 28. fxe3 {[%clk 0:01:32.7]} 28... fxg3+ {[%clk 0:01:58.1]}
29. Qxg3 {[%clk 0:01:32.8]} 29... Re4 {[%clk 0:01:52.3]} 30. Rf4 {[%clk
0:01:14]} 30... Nxf4 {[%clk 0:01:51]} 0-1

[Event "*** SCC Grand Prix: Titled Tuesday Blitz"]
[Site "Chess.com"]
[Date "2020.08.04"]
[Round "4"]
[White "Marreuh"]
[Black "mortngabriel"]
[Result "0-1"]
[WhiteElo "2126"]
[BlackElo "2433"]
[TimeControl "180+1"]
[EndTime "14:20:03 PDT"]
[Termination "mortngabriel won by resignation"]

1. e4 {[%clk 0:03:00.9]} 1... c5 {[%clk 0:02:59.7]} 2. c3 {[%clk 0:03:00.9]}
2... a6 {[%clk 0:02:59]} 3. d4 {[%clk 0:02:59.7]} 3... cxd4 {[%clk 0:02:59.5]}
4. cxd4 {[%clk 0:03:00.6]} 4... d5 {[%clk 0:02:59.8]} 5. exd5 {[%clk 0:02:57.6]}
5... Nf6 {[%clk 0:03:00.3]} 6. Nc3 {[%clk 0:02:49.3]} 6... Nxd5 {[%clk
0:03:00.2]} 7. Nf3 {[%clk 0:02:48.5]} 7... g6 {[%clk 0:02:59.7]} 8. Bc4 {[%clk
0:02:47.9]} 8... Nxc3 {[%clk 0:02:59.2]} 9. bxc3 {[%clk 0:02:48.8]} 9... Bg7
{[%clk 0:02:59.2]} 10. O-O {[%clk 0:02:47.1]} 10... O-O {[%clk 0:02:59.7]} 11.
Bf4 {[%clk 0:02:45.9]} 11... Nc6 {[%clk 0:02:59]} 12. Re1 {[%clk 0:02:38.9]}
12... b5 {[%clk 0:02:58.8]} 13. Bb3 {[%clk 0:02:34]} 13... Bb7 {[%clk
0:02:58.5]} 14. Ne5 {[%clk 0:02:28.5]} 14... Na5 {[%clk 0:02:58.3]} 15. Bc2
{[%clk 0:02:11.2]} 15... Rc8 {[%clk 0:02:57.6]} 16. Re3 {[%clk 0:02:04.8]} 16...
Bxe5 {[%clk 0:02:48]} 17. Bxe5 {[%clk 0:01:58.7]} 17... Nc4 {[%clk 0:02:47.6]}
18. Qg4 {[%clk 0:01:24.7]} 18... Nxe3 {[%clk 0:02:34.6]} 19. fxe3 {[%clk
0:01:25.6]} 19... Rxc3 {[%clk 0:02:33.4]} 20. Bb3 {[%clk 0:01:22.2]} 20... Bd5
{[%clk 0:02:31.2]} 21. Bxd5 {[%clk 0:01:08.8]} 21... Qxd5 {[%clk 0:02:30.6]} 22.
e4 {[%clk 0:01:07.4]} 22... Qc4 {[%clk 0:02:12.5]} 23. d5 {[%clk 0:00:56.3]}
23... Rc1+ {[%clk 0:02:11.6]} 24. Rxc1 {[%clk 0:00:56.4]} 24... Qxc1+ {[%clk
0:02:12.5]} 25. Kf2 {[%clk 0:00:56.6]} 25... f5 {[%clk 0:02:06]} 26. exf5 {[%clk
0:00:41.6]} 26... Rxf5+ {[%clk 0:02:05.2]} 0-1

[Event "*** SCC Grand Prix: Titled Tuesday Blitz"]
[Site "Chess.com"]
[Date "2020.08.04"]
[Round "4"]
[White "Fandorine"]
[Black "MarcoRiehle"]
[Result "0-1"]
[WhiteElo "2896"]
[BlackElo "2749"]
[TimeControl "180+1"]
[EndTime "14:20:28 PDT"]
[Termination "MarcoRiehle won by resignation"]

1. e4 {[%clk 0:03:00.9]} 1... e5 {[%clk 0:02:59.6]} 2. Nf3 {[%clk 0:03:00.8]}
2... Nf6 {[%clk 0:02:59.7]} 3. Nxe5 {[%clk 0:03:00.2]} 3... Nxe4 {[%clk
0:02:59.9]} 4. Nf3 {[%clk 0:02:53.3]} 4... d5 {[%clk 0:02:59.3]} 5. d3 {[%clk
0:02:48.6]} 5... Nf6 {[%clk 0:02:59]} 6. Qe2+ {[%clk 0:02:48.8]} 6... Qe7 {[%clk
0:02:58.6]} 7. Bg5 {[%clk 0:02:46.9]} 7... Be6 {[%clk 0:02:58.4]} 8. Nc3 {[%clk
0:02:46.4]} 8... Nc6 {[%clk 0:02:53.6]} 9. a3 {[%clk 0:02:32.4]} 9... O-O-O
{[%clk 0:02:48.4]} 10. O-O-O {[%clk 0:02:21]} 10... h6 {[%clk 0:02:42.4]} 11.
Bd2 {[%clk 0:02:15]} 11... d4 {[%clk 0:02:37.1]} 12. Ne4 {[%clk 0:02:14.2]}
12... Nd5 {[%clk 0:02:27.6]} 13. Re1 {[%clk 0:02:12.9]} 13... Nb6 {[%clk
0:02:06.3]} 14. Kb1 {[%clk 0:01:59.6]} 14... Rd5 {[%clk 0:01:41.5]} 15. Bc1
{[%clk 0:01:33.9]} 15... Rb5 {[%clk 0:01:30.8]} 16. c4 {[%clk 0:01:34.2]} 16...
dxc3 {[%clk 0:01:24.9]} 17. Nxc3 {[%clk 0:01:34.6]} 17... Rb3 {[%clk 0:01:23.7]}
18. d4 {[%clk 0:01:33.9]} 18... Qxa3 {[%clk 0:01:11.5]} 19. d5 {[%clk
0:01:09.6]} 19... Bf5+ {[%clk 0:01:09.4]} 20. Ne4 {[%clk 0:01:05]} 20... Nb4
{[%clk 0:01:07.2]} 0-1

[Event "*** SCC Grand Prix: Titled Tuesday Blitz"]
[Site "Chess.com"]
[Date "2020.08.04"]
[Round "4"]
[White "cukin84"]
[Black "Belka1989"]
[Result "1-0"]
[WhiteElo "2181"]
[BlackElo "2289"]
[TimeControl "180+1"]
[EndTime "14:20:29 PDT"]
[Termination "cukin84 won by checkmate"]

1. e4 {[%clk 0:03:00.9]} 1... e5 {[%clk 0:02:58.2]} 2. Nf3 {[%clk 0:03:00.3]}
2... Nc6 {[%clk 0:02:57]} 3. c3 {[%clk 0:03:00]} 3... Nf6 {[%clk 0:02:55.4]} 4.
d4 {[%clk 0:02:58.9]} 4... exd4 {[%clk 0:02:50.7]} 5. e5 {[%clk 0:02:58.5]} 5...
Nd5 {[%clk 0:01:55.7]} 6. cxd4 {[%clk 0:02:56.9]} 6... Bb4+ {[%clk 0:01:49.7]}
7. Bd2 {[%clk 0:02:56.4]} 7... Bxd2+ {[%clk 0:01:47.4]} 8. Nbxd2 {[%clk
0:02:55.7]} 8... d6 {[%clk 0:01:42.5]} 9. Bb5 {[%clk 0:02:53.1]} 9... O-O {[%clk
0:01:35]} 10. O-O {[%clk 0:02:51.7]} 10... Bg4 {[%clk 0:01:20.1]} 11. Qb3 {[%clk
0:02:40]} 11... Nb6 {[%clk 0:01:05.4]} 12. h3 {[%clk 0:02:31.1]} 12... Be6
{[%clk 0:01:01.8]} 13. Qc2 {[%clk 0:02:22.1]} 13... dxe5 {[%clk 0:00:46.6]} 14.
Bxc6 {[%clk 0:02:20.9]} 14... bxc6 {[%clk 0:00:47.5]} 15. dxe5 {[%clk
0:02:19.7]} 15... Bd5 {[%clk 0:00:37.9]} 16. b3 {[%clk 0:02:15.1]} 16... Re8
{[%clk 0:00:33.6]} 17. Rad1 {[%clk 0:02:13.5]} 17... Qe7 {[%clk 0:00:33.2]} 18.
Ne4 {[%clk 0:02:04.2]} 18... Nd7 {[%clk 0:00:28.2]} 19. Neg5 {[%clk 0:01:49.3]}
19... Nxe5 {[%clk 0:00:23.9]} 20. Qxh7+ {[%clk 0:01:47.5]} 20... Kf8 {[%clk
0:00:20.8]} 21. Qh8# {[%clk 0:01:47.3]} 1-0

[Event "*** SCC Grand Prix: Titled Tuesday Blitz"]
[Site "Chess.com"]
[Date "2020.08.04"]
[Round "4"]
[White "dopolian"]
[Black "Jenia84"]
[Result "1-0"]
[WhiteElo "2496"]
[BlackElo "2356"]
[TimeControl "180+1"]
[EndTime "14:20:39 PDT"]
[Termination "dopolian won by resignation"]

1. Nf3 {[%clk 0:03:00.9]} 1... Nf6 {[%clk 0:02:59]} 2. c4 {[%clk 0:03:00.1]}
2... e6 {[%clk 0:02:56.6]} 3. g3 {[%clk 0:02:57.4]} 3... Be7 {[%clk 0:02:39.7]}
4. Bg2 {[%clk 0:02:56.3]} 4... O-O {[%clk 0:02:40.6]} 5. O-O {[%clk 0:02:55.9]}
5... c5 {[%clk 0:02:37.8]} 6. b3 {[%clk 0:02:54]} 6... Nc6 {[%clk 0:02:38.1]} 7.
Bb2 {[%clk 0:02:53.8]} 7... b6 {[%clk 0:02:38.6]} 8. d4 {[%clk 0:02:52.6]} 8...
cxd4 {[%clk 0:02:35.6]} 9. Nxd4 {[%clk 0:02:52.3]} 9... Bb7 {[%clk 0:02:36.1]}
10. Nc3 {[%clk 0:02:47.2]} 10... Rc8 {[%clk 0:02:35.1]} 11. Rc1 {[%clk
0:02:44.8]} 11... a6 {[%clk 0:02:32.2]} 12. Qd2 {[%clk 0:02:32.3]} 12... Qc7
{[%clk 0:02:31.7]} 13. Nd5 {[%clk 0:02:28.5]} 13... exd5 {[%clk 0:02:19.6]} 14.
cxd5 {[%clk 0:02:28.7]} 14... Qd8 {[%clk 0:01:58.6]} 15. dxc6 {[%clk 0:02:23]}
15... dxc6 {[%clk 0:01:58.5]} 16. Rfd1 {[%clk 0:02:18.5]} 16... Bc5 {[%clk
0:01:33.3]} 17. b4 {[%clk 0:01:59]} 17... Bxd4 {[%clk 0:01:32.9]} 18. Qxd4
{[%clk 0:01:59]} 18... Qxd4 {[%clk 0:01:31.6]} 19. Bxd4 {[%clk 0:01:58.7]} 19...
b5 {[%clk 0:01:26.7]} 20. Bxf6 {[%clk 0:01:56.9]} 20... gxf6 {[%clk 0:01:25.1]}
21. Rd7 {[%clk 0:01:25.6]} 21... Ba8 {[%clk 0:01:23.9]} 22. Kf1 {[%clk
0:01:22.8]} 22... Rfd8 {[%clk 0:01:15]} 23. Rcd1 {[%clk 0:01:21.7]} 23... Re8
{[%clk 0:01:07.8]} 24. Ra7 {[%clk 0:01:11.7]} 24... Kf8 {[%clk 0:01:04.7]} 25.
Rdd7 {[%clk 0:01:09.6]} 1-0

[Event "*** SCC Grand Prix: Titled Tuesday Blitz"]
[Site "Chess.com"]
[Date "2020.08.04"]
[Round "4"]
[White "gisela_roque"]
[Black "KarstenHansch"]
[Result "0-1"]
[WhiteElo "1854"]
[BlackElo "2416"]
[TimeControl "180+1"]
[EndTime "14:20:53 PDT"]
[Termination "KarstenHansch won by resignation"]

1. c4 {[%clk 0:03:00.9]} 1... e6 {[%clk 0:02:59.4]} 2. Nf3 {[%clk 0:02:57.6]}
2... d5 {[%clk 0:03:00.3]} 3. b3 {[%clk 0:02:57.2]} 3... Nf6 {[%clk 0:02:58.7]}
4. Bb2 {[%clk 0:02:57.2]} 4... Be7 {[%clk 0:02:58.1]} 5. g3 {[%clk 0:02:57.4]}
5... O-O {[%clk 0:02:58.6]} 6. Bg2 {[%clk 0:02:57.5]} 6... c5 {[%clk 0:02:59]}
7. O-O {[%clk 0:02:56.8]} 7... Nc6 {[%clk 0:02:58.7]} 8. d3 {[%clk 0:02:55.8]}
8... d4 {[%clk 0:02:58.5]} 9. Nbd2 {[%clk 0:02:46.8]} 9... e5 {[%clk 0:02:56.5]}
10. Qc2 {[%clk 0:02:45.9]} 10... Bd6 {[%clk 0:02:55.6]} 11. a3 {[%clk
0:02:45.4]} 11... a5 {[%clk 0:02:54.1]} 12. Rfe1 {[%clk 0:02:15.3]} 12... Bf5
{[%clk 0:02:50.1]} 13. Nh4 {[%clk 0:02:13.6]} 13... Bd7 {[%clk 0:02:46.1]} 14.
Ne4 {[%clk 0:02:13.2]} 14... Nxe4 {[%clk 0:02:41.2]} 15. Bxe4 {[%clk 0:02:11.9]}
15... f5 {[%clk 0:02:41.3]} 16. Bg2 {[%clk 0:02:03.5]} 16... Qf6 {[%clk
0:02:37.3]} 17. Bc1 {[%clk 0:01:53.2]} 17... Rae8 {[%clk 0:02:31.6]} 18. Nf3
{[%clk 0:01:50.8]} 18... h6 {[%clk 0:02:29.6]} 19. e3 {[%clk 0:01:22.8]} 19...
e4 {[%clk 0:02:22.8]} 20. dxe4 {[%clk 0:01:08.6]} 20... fxe4 {[%clk 0:02:22.3]}
21. Nh4 {[%clk 0:01:08.2]} 21... g5 {[%clk 0:02:12.6]} 22. exd4 {[%clk
0:00:57.2]} 22... Nxd4 {[%clk 0:02:06.6]} 23. Qb2 {[%clk 0:00:35.8]} 23... gxh4
{[%clk 0:02:02.6]} 24. Rxe4 {[%clk 0:00:35.4]} 24... Rxe4 {[%clk 0:01:58.9]} 25.
Bxe4 {[%clk 0:00:36.3]} 25... hxg3 {[%clk 0:01:59]} 26. hxg3 {[%clk 0:00:34.7]}
26... Bxg3 {[%clk 0:01:56.9]} 27. Bd5+ {[%clk 0:00:21.5]} 27... Kh8 {[%clk
0:01:51.8]} 0-1

[Event "*** SCC Grand Prix: Titled Tuesday Blitz"]
[Site "Chess.com"]
[Date "2020.08.04"]
[Round "4"]
[White "Fighter008"]
[Black "SantoBlue"]
[Result "0-1"]
[WhiteElo "2611"]
[BlackElo "2912"]
[TimeControl "180+1"]
[EndTime "14:21:04 PDT"]
[Termination "SantoBlue won by checkmate"]

1. e4 {[%clk 0:03:00.9]} 1... d6 {[%clk 0:02:36.4]} 2. d4 {[%clk 0:02:57.9]}
2... Nf6 {[%clk 0:02:35.9]} 3. Nc3 {[%clk 0:02:58.4]} 3... e5 {[%clk 0:02:35]}
4. Nf3 {[%clk 0:02:57.3]} 4... Nbd7 {[%clk 0:02:35]} 5. Bc4 {[%clk 0:02:56.7]}
5... Be7 {[%clk 0:02:35.1]} 6. O-O {[%clk 0:02:56]} 6... O-O {[%clk 0:02:35.2]}
7. a4 {[%clk 0:02:56.6]} 7... c6 {[%clk 0:02:35.4]} 8. Re1 {[%clk 0:02:55.5]}
8... h6 {[%clk 0:02:33.9]} 9. Bb3 {[%clk 0:02:51.5]} 9... Re8 {[%clk 0:02:32.9]}
10. Nh4 {[%clk 0:02:48.8]} 10... exd4 {[%clk 0:02:31.3]} 11. Qxd4 {[%clk
0:02:48.1]} 11... d5 {[%clk 0:02:28.1]} 12. e5 {[%clk 0:02:44.5]} 12... Bc5
{[%clk 0:02:25.6]} 13. Qf4 {[%clk 0:02:37.4]} 13... g5 {[%clk 0:02:16.1]} 14.
Qg3 {[%clk 0:02:33.5]} 14... Bd4 {[%clk 0:01:53.1]} 15. Bxg5 {[%clk 0:02:28.6]}
15... hxg5 {[%clk 0:01:47.1]} 16. Qxg5+ {[%clk 0:02:28.5]} 16... Kh8 {[%clk
0:01:42.1]} 17. Nf5 {[%clk 0:02:16.5]} 17... Bxf2+ {[%clk 0:01:35.6]} 18. Kxf2
{[%clk 0:02:10.3]} 18... Rg8 {[%clk 0:01:32.4]} 19. Qh4+ {[%clk 0:01:53]} 19...
Nh7 {[%clk 0:01:32]} 20. Qd4 {[%clk 0:01:52.6]} 20... Qg5 {[%clk 0:01:09.9]} 21.
Ng3 {[%clk 0:01:44.9]} 21... Rg7 {[%clk 0:01:06.6]} 22. Kg1 {[%clk 0:01:41.8]}
22... Ndf8 {[%clk 0:01:06.2]} 23. Qf2 {[%clk 0:01:14.6]} 23... Ne6 {[%clk
0:01:00.6]} 24. Kh1 {[%clk 0:01:09.9]} 24... Bd7 {[%clk 0:01:00.3]} 25. Nf5
{[%clk 0:01:08.3]} 25... Rg6 {[%clk 0:00:57.9]} 26. Nd6 {[%clk 0:01:07.8]} 26...
Rf8 {[%clk 0:00:57]} 27. Nxf7+ {[%clk 0:01:05.7]} 27... Rxf7 {[%clk 0:00:55.8]}
28. Qxf7 {[%clk 0:01:06.6]} 28... Qxg2# {[%clk 0:00:56.1]} 0-1

[Event "*** SCC Grand Prix: Titled Tuesday Blitz"]
[Site "Chess.com"]
[Date "2020.08.04"]
[Round "4"]
[White "Goryachkina"]
[Black "ChessWarrior7197"]
[Result "0-1"]
[WhiteElo "2585"]
[BlackElo "2876"]
[TimeControl "180+1"]
[EndTime "14:21:05 PDT"]
[Termination "ChessWarrior7197 won by resignation"]

1. e4 {[%clk 0:03:00.9]} 1... c5 {[%clk 0:02:58.8]} 2. Nf3 {[%clk 0:03:00.7]}
2... d6 {[%clk 0:02:59.4]} 3. c3 {[%clk 0:03:00.5]} 3... Nf6 {[%clk 0:02:59.2]}
4. Be2 {[%clk 0:03:00.7]} 4... g6 {[%clk 0:02:59.3]} 5. O-O {[%clk 0:03:00.3]}
5... Bg7 {[%clk 0:02:59.6]} 6. Bb5+ {[%clk 0:03:00.2]} 6... Bd7 {[%clk
0:02:56.5]} 7. Bxd7+ {[%clk 0:02:59.7]} 7... Nfxd7 {[%clk 0:02:56.1]} 8. d4
{[%clk 0:02:58.2]} 8... O-O {[%clk 0:02:56.7]} 9. Re1 {[%clk 0:02:54]} 9... Nc6
{[%clk 0:02:55.9]} 10. d5 {[%clk 0:02:50.9]} 10... Nce5 {[%clk 0:02:55.7]} 11.
Be3 {[%clk 0:02:31.5]} 11... Nc4 {[%clk 0:02:51.5]} 12. Qe2 {[%clk 0:02:24.8]}
12... Nxe3 {[%clk 0:02:51.2]} 13. Qxe3 {[%clk 0:02:25.2]} 13... b5 {[%clk
0:02:52.1]} 14. Nbd2 {[%clk 0:02:24.5]} 14... a5 {[%clk 0:02:51.9]} 15. a4
{[%clk 0:02:19.1]} 15... b4 {[%clk 0:02:52.3]} 16. Nc4 {[%clk 0:02:14.1]} 16...
Qc8 {[%clk 0:02:50.5]} 17. cxb4 {[%clk 0:02:01.5]} 17... cxb4 {[%clk 0:02:44.7]}
18. Rac1 {[%clk 0:02:01.1]} 18... Qa6 {[%clk 0:02:43.6]} 19. Nd4 {[%clk
0:01:47.5]} 19... Bxd4 {[%clk 0:02:37.4]} 20. Qxd4 {[%clk 0:01:47.2]} 20... Nc5
{[%clk 0:02:37.5]} 21. Qd1 {[%clk 0:01:34.4]} 21... Rac8 {[%clk 0:02:37.3]} 22.
h3 {[%clk 0:00:57.4]} 22... Rfd8 {[%clk 0:02:29.7]} 23. Kh2 {[%clk 0:00:21.7]}
23... Rc7 {[%clk 0:02:29.6]} 24. Ne3 {[%clk 0:00:19.1]} 24... Rdc8 {[%clk
0:02:27.7]} 25. Rc4 {[%clk 0:00:19]} 25... Nd7 {[%clk 0:02:24.8]} 26. Rxc7
{[%clk 0:00:15.9]} 26... Rxc7 {[%clk 0:02:25.7]} 27. Qd2 {[%clk 0:00:16.3]}
27... Nc5 {[%clk 0:02:25]} 28. Qc2 {[%clk 0:00:12.8]} 28... Qd3 {[%clk
0:02:20.8]} 29. Rc1 {[%clk 0:00:11.4]} 29... Qxc2 {[%clk 0:02:15.9]} 30. Rxc2
{[%clk 0:00:11.7]} 30... Ra7 {[%clk 0:02:11.4]} 31. f3 {[%clk 0:00:11.5]} 31...
Nxa4 {[%clk 0:02:11.7]} 32. Rc8+ {[%clk 0:00:11.3]} 32... Kg7 {[%clk 0:02:11.7]}
33. Nc4 {[%clk 0:00:11.5]} 33... Nc5 {[%clk 0:02:11.2]} 34. Rb8 {[%clk
0:00:11.4]} 34... Nd3 {[%clk 0:02:09.4]} 35. Rb5 {[%clk 0:00:10.5]} 35... a4
{[%clk 0:02:08.9]} 0-1

[Event "*** SCC Grand Prix: Titled Tuesday Blitz"]
[Site "Chess.com"]
[Date "2020.08.04"]
[Round "4"]
[White "AvitalBor"]
[Black "ChainsOfFantasia"]
[Result "1-0"]
[WhiteElo "2760"]
[BlackElo "2500"]
[TimeControl "180+1"]
[EndTime "14:21:23 PDT"]
[Termination "AvitalBor won by resignation"]

1. e4 {[%clk 0:03:00.9]} 1... e6 {[%clk 0:02:54.6]} 2. d4 {[%clk 0:03:00.7]}
2... d5 {[%clk 0:02:55.5]} 3. Nd2 {[%clk 0:03:01.4]} 3... c5 {[%clk 0:02:54.5]}
4. exd5 {[%clk 0:03:01.1]} 4... Qxd5 {[%clk 0:02:55.3]} 5. dxc5 {[%clk
0:02:59.9]} 5... Bxc5 {[%clk 0:02:53]} 6. Ngf3 {[%clk 0:03:00.4]} 6... Nf6
{[%clk 0:02:52.1]} 7. Bd3 {[%clk 0:03:00.9]} 7... b6 {[%clk 0:02:44.1]} 8. Qe2
{[%clk 0:03:00.1]} 8... O-O {[%clk 0:02:39]} 9. Ne4 {[%clk 0:02:57.2]} 9... Bb7
{[%clk 0:02:15]} 10. Nxf6+ {[%clk 0:02:54.8]} 10... gxf6 {[%clk 0:02:15.9]} 11.
Bh6 {[%clk 0:02:51]} 11... Rd8 {[%clk 0:02:09]} 12. O-O-O {[%clk 0:02:50.9]}
12... Qh5 {[%clk 0:02:04]} 13. Be3 {[%clk 0:02:36.7]} 13... Nc6 {[%clk
0:01:55.2]} 14. g4 {[%clk 0:02:29.1]} 14... Bxe3+ {[%clk 0:01:51]} 15. Qxe3
{[%clk 0:02:29.4]} 15... Qh3 {[%clk 0:01:34.4]} 16. Rhg1 {[%clk 0:02:14.7]}
16... Ne5 {[%clk 0:01:23.7]} 17. Rg3 {[%clk 0:02:04.6]} 17... Qxg3 {[%clk
0:01:23.7]} 18. hxg3 {[%clk 0:02:00.7]} 18... Bxf3 {[%clk 0:01:23.9]} 19. Be2
{[%clk 0:01:45.2]} 19... Bxg4 {[%clk 0:00:56.4]} 20. Rxd8+ {[%clk 0:01:26.1]}
20... Rxd8 {[%clk 0:00:50.8]} 21. f3 {[%clk 0:01:25.8]} 21... Bf5 {[%clk
0:00:45.9]} 22. g4 {[%clk 0:01:25]} 22... Bg6 {[%clk 0:00:41.6]} 23. f4 {[%clk
0:01:25.1]} 23... Nc6 {[%clk 0:00:31.7]} 24. c3 {[%clk 0:01:24.8]} 24... Ne7
{[%clk 0:00:23.1]} 25. f5 {[%clk 0:01:21.2]} 25... Nd5 {[%clk 0:00:18.3]} 26.
Qf2 {[%clk 0:01:17.9]} 26... exf5 {[%clk 0:00:15.7]} 27. gxf5 {[%clk 0:01:17.7]}
1-0

[Event "*** SCC Grand Prix: Titled Tuesday Blitz"]
[Site "Chess.com"]
[Date "2020.08.04"]
[Round "4"]
[White "StoreySniper"]
[Black "Bulldog167"]
[Result "0-1"]
[WhiteElo "2462"]
[BlackElo "2729"]
[TimeControl "180+1"]
[EndTime "14:21:29 PDT"]
[Termination "Bulldog167 won by resignation"]

1. e4 {[%clk 0:03:00.9]} 1... c5 {[%clk 0:03:00.1]} 2. Nf3 {[%clk 0:03:00]} 2...
d6 {[%clk 0:03:00.6]} 3. d4 {[%clk 0:02:59.6]} 3... cxd4 {[%clk 0:03:01.5]} 4.
Nxd4 {[%clk 0:03:00]} 4... Nf6 {[%clk 0:03:02.2]} 5. Nc3 {[%clk 0:02:59.2]} 5...
a6 {[%clk 0:03:02.6]} 6. h3 {[%clk 0:02:58.7]} 6... e5 {[%clk 0:03:03.1]} 7.
Nde2 {[%clk 0:02:57.9]} 7... b5 {[%clk 0:03:02.8]} 8. g4 {[%clk 0:02:55.1]} 8...
Bb7 {[%clk 0:03:02.4]} 9. Bg2 {[%clk 0:02:53.8]} 9... b4 {[%clk 0:03:02.3]} 10.
Nd5 {[%clk 0:02:54]} 10... Nxd5 {[%clk 0:03:02.7]} 11. exd5 {[%clk 0:02:54]}
11... Be7 {[%clk 0:03:01.5]} 12. a3 {[%clk 0:02:46.1]} 12... bxa3 {[%clk
0:02:56]} 13. Rxa3 {[%clk 0:02:45.7]} 13... O-O {[%clk 0:02:55.9]} 14. O-O
{[%clk 0:02:40.2]} 14... Nd7 {[%clk 0:02:56.1]} 15. c4 {[%clk 0:02:27.7]} 15...
a5 {[%clk 0:02:56.1]} 16. Ng3 {[%clk 0:02:18.9]} 16... g6 {[%clk 0:02:55.4]} 17.
Bh6 {[%clk 0:02:17]} 17... Re8 {[%clk 0:02:55.7]} 18. Ne4 {[%clk 0:02:10.7]}
18... Nf6 {[%clk 0:02:54.9]} 19. Qd2 {[%clk 0:01:47.3]} 19... Nxe4 {[%clk
0:02:49.1]} 20. Bxe4 {[%clk 0:01:47.1]} 20... Bf8 {[%clk 0:02:41.2]} 21. Bxf8
{[%clk 0:01:45.6]} 21... Rxf8 {[%clk 0:02:41.1]} 22. Rfa1 {[%clk 0:01:45.9]}
22... f5 {[%clk 0:02:41.1]} 23. gxf5 {[%clk 0:01:44.8]} 23... gxf5 {[%clk
0:02:42]} 24. Rg3+ {[%clk 0:01:38.1]} 24... Kh8 {[%clk 0:02:41.8]} 25. Qh6
{[%clk 0:01:37.4]} 25... Qf6 {[%clk 0:02:32.9]} 26. Qxf6+ {[%clk 0:01:24.7]}
26... Rxf6 {[%clk 0:02:33.8]} 27. Bc2 {[%clk 0:01:19]} 27... f4 {[%clk
0:02:29.7]} 28. Rga3 {[%clk 0:01:08.5]} 28... Rg8+ {[%clk 0:02:29.7]} 29. Kh2
{[%clk 0:01:08.4]} 29... Rc8 {[%clk 0:02:15.1]} 30. b3 {[%clk 0:01:01]} 30...
Bxd5 {[%clk 0:02:13.6]} 31. Rxa5 {[%clk 0:00:55.5]} 31... Bf3 {[%clk 0:02:13.4]}
32. Ra7 {[%clk 0:00:46.5]} 32... e4 {[%clk 0:02:10.6]} 33. Rg1 {[%clk 0:00:39]}
33... Rg6 {[%clk 0:01:58.9]} 34. Rxg6 {[%clk 0:00:38.7]} 34... hxg6 {[%clk
0:01:59.8]} 35. Re7 {[%clk 0:00:38.5]} 35... d5 {[%clk 0:01:58.6]} 36. Bb1
{[%clk 0:00:21.5]} 36... Kg8 {[%clk 0:01:38.8]} 37. cxd5 {[%clk 0:00:19.1]}
37... Rc1 {[%clk 0:01:38.6]} 0-1